fUSD/lending_fUSD_20250209
["ID","MTS","AMOUNT","RATE_DAILY","PERIOD"]
[352374548,1739067041058,-513.95654445,0.00010128,2]
[352374549,1739067041069,-500.0,0.00010128,2]
[352374550,1739067041078,-500.0,0.00010128,2]
[352374551,1739067041088,-500.0,0.00010128,2]
[352374552,1739067041097,-681.42,0.00010128,2]
[352374553,1739067041105,-500.0,0.00010128,2]
[352374554,1739067041114,-500.0,0.00010128,2]
[352374555,1739067041123,-500.0,0.00010128,2]
[352374556,1739067041132,-500.0,0.00010128,2]
[352374557,1739067041141,-500.0,0.00010128,2]
[352374558,1739067041152,-232.62471698,0.00010128,2]
[352374559,1739067041171,-272.29644333,0.00010128,2]
[352374560,1739067041181,-500.0,0.00010128,2]
[352374561,1739067041191,-500.0,0.00010128,2]
[352374562,1739067041200,-500.0,0.00010128,2]
[352374563,1739067041210,-500.0,0.00010128,2]
[352374564,1739067041219,-500.0,0.00010128,2]
[352374565,1739067041229,-84.63727667,0.00010128,2]
[352374566,1739067041241,-415.36272333,0.00010128,2]
[352374567,1739067041251,-500.0,0.00010128,2]
[352374568,1739067041260,-500.0,0.00010128,2]
[352374569,1739067041270,-500.0,0.00010128,2]
[352374570,1739067041279,-500.0,0.00010128,2]
[352374571,1739067041287,-496.25727667,0.00010128,2]
[352374572,1739067041299,-86.08523533,0.00010128,2]
[352374573,1739067041308,-500.0,0.00010128,2]
[352374574,1739067041318,-500.0,0.00010128,2]
[352374575,1739067041327,-500.0,0.00010128,2]
[352374576,1739067041338,-500.0,0.00010128,2]
[352374577,1739067041348,-500.0,0.00010128,2]
[352374578,1739067041357,-239.43218518,0.00010128,2]
[352374579,1739067041367,-500.0,0.00010128,2]
[352374580,1739067041376,-500.0,0.00010128,2]
[352374581,1739067041387,-503.42622224,0.00010128,2]
[352374582,1739067041396,-500.0,0.00010128,2]
[352374583,1739067041405,-500.0,0.00010128,2]
[352374584,1739067041414,-532.55539992,0.00010128,2]
[352374585,1739067041424,-224.36246835,0.00010128,2]
[352374586,1739067041436,-479.83088544,0.00010128,2]
[352374587,1739067041445,-450.0,0.00010128,2]
[352374588,1739067041454,-773.99,0.00010128,2]
[352374589,1739067041464,-500.0,0.00010128,2]
[352374590,1739067041475,-691.88,0.00010128,2]
[352374591,1739067041485,-500.0,0.00010128,2]
[352374592,1739067041495,-500.0,0.00010128,2]
[352374593,1739067041504,-500.0,0.00010128,2]
[352374594,1739067041516,-500.0,0.00010128,2]
[352374595,1739067041527,-500.0,0.00010128,2]
[352374596,1739067041536,-630.51082486,0.00010128,2]
[352374597,1739067041545,-500.0,0.00010128,2]
[352374598,1739067041555,-500.0,0.00010128,2]
[352374599,1739067041565,-500.0,0.00010128,2]
[352374600,1739067041575,-500.0,0.00010128,2]
[352374601,1739067041583,-500.0,0.00010128,2]
[352374602,1739067041593,-500.0,0.00010128,2]
[352374603,1739067041603,-500.0,0.00010128,2]
[352374604,1739067041613,-742.61,0.00010128,2]
[352374605,1739067041623,-500.0,0.00010128,2]
[352374606,1739067041632,-500.0,0.00010128,2]
[352374607,1739067041642,-500.0,0.00010128,2]
[352374608,1739067041652,-503.39860726,0.00010128,2]
[352374609,1739067041661,-500.0,0.00010128,2]
[352374610,1739067041670,-500.0,0.00010128,2]
[352374611,1739067041680,-626.31,0.00010128,2]
[352374612,1739067041690,-500.0,0.00010128,2]
[352374613,1739067041699,-500.0,0.00010128,2]
[352374614,1739067041710,-500.0,0.00010128,2]
[352374615,1739067041720,-509.43,0.00010128,2]
[352374616,1739067041730,-500.0,0.00010128,2]
[352374617,1739067041739,-500.0,0.00010128,2]
[352374618,1739067041754,-211.76,0.00010128,2]
[352374619,1739067041764,-500.0,0.00010128,2]
[352374620,1739067041773,-500.0,0.00010128,2]
[352374621,1739067041783,-585.07,0.00010128,2]
[352374622,1739067041792,-500.0,0.00010128,2]
[352374623,1739067041802,-500.0,0.00010128,2]
[352374624,1739067041811,-500.0,0.00010128,2]
[352374625,1739067041821,-500.0,0.00010128,2]
[352374626,1739067041831,-609.17,0.00010128,2]
[352374627,1739067041841,-500.0,0.00010128,2]
[352374628,1739067041850,-500.0,0.00010128,2]
[352374629,1739067041860,-500.0,0.00010128,2]
[352374630,1739067041869,-509.98849569,0.00010128,2]
[352374631,1739067041878,-637.11,0.00010128,2]
[352374632,1739067041888,-504.54151455,0.00010128,2]
[352374633,1739067041898,-500.0,0.00010128,2]
[352374634,1739067041908,-500.0,0.00010128,2]
[352374635,1739067041918,-601.85514606,0.00010128,2]
[352374636,1739067041928,-500.0,0.00010128,2]
[352374637,1739067041938,-504.36146318,0.00010128,2]
[352374638,1739067041947,-517.50642386,0.00010128,2]
[352374639,1739067041957,-500.0,0.00010128,2]
[352374640,1739067041967,-500.0,0.00010128,2]
[352374641,1739067041977,-500.0,0.00010128,2]
[352374642,1739067041987,-500.0,0.00010128,2]
[352374643,1739067041996,-505.57558019,0.00010128,2]
[352374644,1739067042007,-500.0,0.00010128,2]
[352374645,1739067042017,-500.0,0.00010128,2]
[352374646,1739067042028,-503.88170038,0.00010128,2]
[352374647,1739067042038,-500.0,0.00010128,2]
[352374648,1739067042047,-500.0,0.00010128,2]
[352374649,1739067042057,-500.0,0.00010128,2]
[352374650,1739067042066,-500.0,0.00010128,2]
[352374651,1739067042075,-500.0,0.00010128,2]
[352374652,1739067042085,-500.0,0.00010128,2]
[352374653,1739067042094,-500.0,0.00010128,2]
[352374654,1739067042103,-500.0,0.00010128,2]
[352374655,1739067042113,-500.0,0.00010128,2]
[352374656,1739067042123,-500.0,0.00010128,2]
[352374657,1739067042133,-500.0,0.00010128,2]
[352374658,1739067042143,-504.28671628,0.00010128,2]
[352374659,1739067042151,-502.80870115,0.00010128,2]
[352374660,1739067042365,-500.0,0.00010128,2]
[352374661,1739067042392,-500.0,0.00010128,2]
[352374662,1739067042415,-500.0,0.00010128,2]
[352374663,1739067042438,-500.0,0.00010128,2]
[352374664,1739067042459,-531.11,0.00010128,2]
[352374665,1739067042482,-732.35,0.00010128,2]
[352374666,1739067042506,-500.0,0.00010128,2]
[352374667,1739067042529,-500.0,0.00010128,2]
[352374670,1739067042547,-508.13,0.00010128,2]
[352374672,1739067042557,-500.0,0.00010128,2]
[352374674,1739067042566,-649.4,0.00010128,2]
[352374676,1739067042575,-500.0,0.00010128,2]
[352374678,1739067042584,-500.0,0.00010128,2]
[352374680,1739067042594,-500.0,0.00010128,2]
[352374682,1739067042603,-1299.56,0.00010128,2]
[352374684,1739067042612,-538.42,0.00010128,2]
[352374687,1739067042621,-500.0,0.00010128,2]
[352374689,1739067042630,-749.22,0.00010128,2]
[352374691,1739067042639,-158.879942,0.00010128,2]
[352374693,1739067042647,-500.0,0.00010128,2]
[352374695,1739067042656,-500.0,0.00010128,2]
[352374697,1739067042665,-500.0,0.00010128,2]
[352374699,1739067042674,-500.0,0.00010128,2]
[352374701,1739067042683,-500.0,0.00010128,2]
[352374703,1739067042692,-500.0,0.00010128,2]
[352374705,1739067042701,-500.0,0.00010128,2]
[352374707,1739067042711,-500.0,0.00010128,2]
[352374709,1739067042719,-500.0,0.00010128,2]
[352374711,1739067042728,-500.0,0.00010128,2]
[352374713,1739067042737,-555.49,0.00010128,2]
[352374715,1739067042746,-500.0,0.00010128,2]
[352374718,1739067042755,-500.0,0.00010128,2]
[352374721,1739067042764,-500.0,0.00010128,2]
[352374724,1739067042773,-500.0,0.00010128,2]
[352374726,1739067042781,-500.0,0.00010128,2]
[352374729,1739067042790,-796.32,0.00010128,2]
[352374732,1739067042799,-500.0,0.00010128,2]
[352374735,1739067042809,-500.0,0.00010128,2]
[352374737,1739067042818,-500.0,0.00010128,2]
[352374739,1739067042827,-189.97726562,0.00010128,2]
[352374741,1739067042836,-593.04,0.00010128,2]
[352374744,1739067042845,-500.0,0.00010128,2]
[352374746,1739067042855,-500.0,0.00010128,2]
[352374748,1739067042864,-500.0,0.00010128,2]
[352374749,1739067042873,-1215.29,0.00010128,2]
[352374750,1739067042882,-1796.39,0.00010128,2]
[352374751,1739067042893,-543.91,0.00010128,2]
[352374752,1739067042902,-500.0,0.00010128,2]
[352374754,1739067042913,-500.0,0.00010128,2]
[352374755,1739067042922,-504.86061358,0.00010128,2]
[352374756,1739067042932,-877.75,0.00010128,2]
[352374757,1739067042942,-500.0,0.00010128,2]
[352374758,1739067042951,-500.0,0.00010128,2]
[352374759,1739067042961,-500.0,0.00010128,2]
[352374760,1739067042971,-500.0,0.00010128,2]
[352374761,1739067042981,-500.0,0.00010128,2]
[352374762,1739067042991,-500.0,0.00010128,2]
[352374763,1739067043001,-500.0,0.00010128,2]
[352374764,1739067043011,-694.64,0.00010128,2]
[352374765,1739067043020,-517.41,0.00010128,2]
[352374766,1739067043030,-500.0,0.00010128,2]
[352374767,1739067043039,-1768.32,0.00010128,2]
[352374768,1739067043049,-500.0,0.00010128,2]
[352374769,1739067043058,-504.56119182,0.00010128,2]
[352374770,1739067043067,-500.0,0.00010128,2]
[352374771,1739067043076,-500.0,0.00010128,2]
[352374772,1739067043086,-500.0,0.00010128,2]
[352374773,1739067043095,-608.2082855,0.00010128,2]
[352374774,1739067043105,-500.0,0.00010128,2]
[352374775,1739067043114,-500.0,0.00010128,2]
[352374776,1739067043123,-500.0,0.00010128,2]
[352374777,1739067043132,-500.0,0.00010128,2]
[352374778,1739067043142,-183.740752,0.00010128,2]
[352374779,1739067043151,-500.0,0.00010128,2]
[352374780,1739067043160,-1524.66,0.00010128,2]
[352374781,1739067043170,-626.32158455,0.00010128,2]
[352374782,1739067043179,-1495.14,0.00010128,2]
[352374783,1739067043188,-500.0,0.00010128,2]
[352374784,1739067043197,-500.0,0.00010128,2]
[352374785,1739067043207,-500.0,0.00010128,2]
[352374786,1739067043217,-1116.07,0.00010128,2]
[352374787,1739067043226,-500.0,0.00010128,2]
[352374788,1739067043235,-500.0,0.00010128,2]
[352374789,1739067043244,-504.60136731,0.00010128,2]
[352374790,1739067043253,-500.0,0.00010128,2]
[352374791,1739067043262,-1428.31,0.00010128,2]
[352374792,1739067043271,-500.0,0.00010128,2]
[352374793,1739067043280,-165.785394,0.00010128,2]
[352374794,1739067043289,-500.0,0.00010128,2]
[352374795,1739067043298,-500.0,0.00010128,2]
[352374796,1739067043307,-500.0,0.00010128,2]
[352374797,1739067043317,-1227.35,0.00010128,2]
[352374798,1739067043326,-500.0,0.00010128,2]
[352374799,1739067043335,-500.0,0.00010128,2]
[352374800,1739067043344,-1509.04,0.00010128,2]
[352374801,1739067043353,-815.79,0.00010128,2]
[352374802,1739067043363,-500.0,0.00010128,2]
[352374803,1739067043372,-500.0,0.00010128,2]
[352374804,1739067043381,-565.77,0.00010128,2]
[352374805,1739067043390,-354.59296734,0.00010128,2]
[352374806,1739067043400,-500.0,0.00010128,2]
[352374807,1739067043409,-900.37,0.00010128,2]
[352374808,1739067043418,-500.0,0.00010128,2]
[352374809,1739067043427,-500.0,0.00010128,2]
[352374810,1739067043442,-1051.97,0.00010128,2]
[352374811,1739067043452,-500.0,0.00010128,2]
[352374812,1739067043461,-500.0,0.00010128,2]
[352374813,1739067043471,-556.98165232,0.00010128,2]
[352374814,1739067043481,-500.0,0.00010128,2]
[352374815,1739067043490,-657.94,0.00010128,2]
[352374816,1739067043499,-500.0,0.00010128,2]
[352374817,1739067043508,-500.0,0.00010128,2]
[352374818,1739067043518,-768.65,0.00010128,2]
[352374819,1739067043528,-380.26494835,0.00010128,2]
[352374820,1739067043537,-500.0,0.00010128,2]
[352374821,1739067043547,-1133.2,0.00010128,2]
[352374822,1739067043556,-1223.67,0.00010128,2]
[352374823,1739067043565,-500.0,0.00010128,2]
[352374824,1739067043575,-500.0,0.00010128,2]
[352374825,1739067043585,-505.19088532,0.00010128,2]
[352374826,1739067043594,-500.0,0.00010128,2]
[352374827,1739067043604,-500.0,0.00010128,2]
[352374828,1739067043614,-500.0,0.00010128,2]
[352374829,1739067043623,-472.20105034,0.00010128,2]
[352374830,1739067043632,-500.0,0.00010128,2]
[352374831,1739067043641,-500.0,0.00010128,2]
[352374832,1739067043650,-508.96,0.00010128,2]
[352374833,1739067043660,-500.0,0.00010128,2]
[352374834,1739067043668,-139.11548971,0.00010128,2]
[352374835,1739067043684,-1239.08451029,0.00010128,2]
[352374836,1739067043694,-1887.74,0.00010128,2]
[352374837,1739067043703,-397.58069623,0.00010128,2]
[352374838,1739067044044,-102.41930377,0.00010128,2]
[352374839,1739067044053,-500.0,0.00010128,2]
[352374840,1739067044063,-500.0,0.00010128,2]
[352374841,1739067044072,-831.44,0.00010128,2]
[352374842,1739067044081,-500.0,0.00010128,2]
[352374843,1739067044090,-500.0,0.00010128,2]
[352374844,1739067044099,-503.35490683,0.00010128,2]
[352374845,1739067044108,-759.35,0.00010128,2]
[352374846,1739067044117,-500.0,0.00010128,2]
[352374847,1739067044126,-500.0,0.00010128,2]
[352374848,1739067044135,-353.3357894,0.00010128,2]
[352374849,1739067044162,-1511.4042106,0.00010128,2]
[352374850,1739067044171,-500.0,0.00010128,2]
[352374851,1739067044180,-500.0,0.00010128,2]
[352374852,1739067044189,-500.0,0.00010128,2]
[352374853,1739067044198,-500.0,0.00010128,2]
[352374854,1739067044208,-500.0,0.00010128,2]
[352374855,1739067044217,-500.0,0.00010128,2]
[352374856,1739067044226,-807.22,0.00010128,2]
[352374857,1739067044235,-500.0,0.00010128,2]
[352374858,1739067044244,-500.0,0.00010128,2]
[352374859,1739067044253,-500.0,0.00010128,2]
[352374860,1739067044262,-500.0,0.00010128,2]
[352374861,1739067044271,-500.0,0.00010128,2]
[352374862,1739067044280,-500.0,0.00010128,2]
[352374863,1739067044289,-500.0,0.00010128,2]
[352374864,1739067044298,-500.0,0.00010128,2]
[352374865,1739067044308,-500.0,0.00010128,2]
[352374866,1739067044317,-546.5,0.00010128,2]
[352374867,1739067044326,-1310.03,0.00010128,2]
[352374868,1739067044335,-2126.08,0.00010128,2]
[352374869,1739067044343,-500.0,0.00010128,2]
[352374870,1739067044352,-520.19172596,0.00010128,2]
[352374871,1739067044361,-500.0,0.00010128,2]
[352374872,1739067044370,-500.0,0.00010128,2]
[352374873,1739067044379,-903.08,0.00010128,2]
[352374874,1739067044387,-500.0,0.00010128,2]
[352374875,1739067044396,-500.0,0.00010128,2]
[352374876,1739067044405,-500.0,0.00010128,2]
[352374877,1739067044414,-500.0,0.00010128,2]
[352374878,1739067044423,-500.0,0.00010128,2]
[352374879,1739067044436,-1645.07,0.00010128,2]
[352374880,1739067044445,-1066.94,0.00010128,2]
[352374881,1739067044454,-500.0,0.00010128,2]
[352374882,1739067044464,-500.0,0.00010128,2]
[352374883,1739067044474,-500.0,0.00010128,2]
[352374884,1739067044483,-500.0,0.00010128,2]
[352374885,1739067044492,-500.0,0.00010128,2]
[352374886,1739067044501,-500.0,0.00010128,2]
[352374887,1739067044511,-500.0,0.00010128,2]
[352374888,1739067044521,-500.0,0.00010128,2]
[352374889,1739067044530,-975.47,0.00010128,2]
[352374890,1739067044539,-574.86781858,0.00010128,2]
[352374891,1739067044547,-500.0,0.00010128,2]
[352374892,1739067044557,-1630.36,0.00010128,2]
[352374893,1739067044566,-500.0,0.00010128,2]
[352374894,1739067044575,-500.0,0.00010128,2]
[352374895,1739067044584,-500.0,0.00010128,2]
[352374896,1739067044593,-500.0,0.00010128,2]
[352374897,1739067044603,-500.0,0.00010128,2]
[352374898,1739067044614,-503.57371318,0.00010128,2]
[352374899,1739067044623,-500.0,0.00010128,2]
[352374900,1739067044632,-1170.95,0.00010128,2]
[352374901,1739067044641,-500.0,0.00010128,2]
[352374902,1739067044651,-2391.75,0.00010128,2]
[352374903,1739067044660,-500.0,0.00010128,2]
[352374904,1739067044670,-500.0,0.00010128,2]
[352374905,1739067044680,-500.0,0.00010128,2]
[352374906,1739067044690,-1472.78,0.00010128,2]
[352374907,1739067044700,-500.0,0.00010128,2]
[352374908,1739067044711,-500.0,0.00010128,2]
[352374909,1739067044721,-501.1948617,0.00010129,2]
[352374910,1739067044730,-467.47533306,0.00010129,2]
[352374911,1739067044739,-500.0,0.00010129,2]
[352374912,1739067044748,-500.0,0.00010129,2]
[352374913,1739067044759,-500.0,0.00010129,2]
[352374914,1739067044770,-500.0,0.00010129,2]
[352374915,1739067044779,-500.0,0.00010129,2]
[352374916,1739067044788,-500.0,0.00010129,2]
[352374917,1739067044798,-500.0,0.00010129,2]
[352374918,1739067044807,-603.69167813,0.00010129,2]
[352374919,1739067044816,-500.0,0.00010129,2]
[352374920,1739067044826,-501.39150115,0.00010129,2]
[352374921,1739067044835,-500.0,0.00010129,2]
[352374922,1739067044844,-500.0,0.00010129,2]
[352374923,1739067044854,-500.0,0.00010129,2]
[352374924,1739067044863,-500.0,0.00010129,2]
[352374925,1739067044872,-500.0,0.00010129,2]
[352374926,1739067044882,-500.0,0.00010129,2]
[352374927,1739067044891,-500.0,0.00010129,2]
[352374928,1739067044901,-500.0,0.00010129,2]
[352374929,1739067044911,-500.0,0.00010129,2]
[352374930,1739067044922,-500.0,0.00010129,2]
[352374931,1739067044931,-500.0,0.00010129,2]
[352374932,1739067044940,-500.0,0.00010129,2]
[352374933,1739067044950,-500.0,0.00010129,2]
[352374934,1739067044958,-500.0,0.00010129,2]
[352374935,1739067044968,-500.0,0.00010129,2]
[352374936,1739067044977,-500.0,0.00010129,2]
[352374937,1739067044986,-500.0,0.00010129,2]
[352374938,1739067044995,-500.0,0.00010129,2]
[352374939,1739067045004,-500.0,0.00010129,2]
[352374940,1739067045013,-500.0,0.00010129,2]
[352374941,1739067045023,-500.0,0.00010129,2]
[352374942,1739067045032,-500.0,0.00010129,2]
[352374943,1739067045041,-154.56884015,0.00010129,2]
[352374944,1739067045050,-504.20363957,0.00010129,2]
[352374945,1739067045059,-500.0,0.00010129,2]
[352374946,1739067045068,-500.0,0.00010129,2]
[352374947,1739067045077,-500.0,0.00010129,2]
[352374948,1739067045087,-500.0,0.00010129,2]
[352374949,1739067045096,-500.0,0.00010129,2]
[352374950,1739067045105,-504.30751353,0.00010129,2]
[352374951,1739067045114,-500.0,0.00010129,2]
[352374952,1739067045123,-500.0,0.00010129,2]
[352374953,1739067045133,-500.0,0.00010129,2]
[352374954,1739067045142,-500.0,0.00010129,2]
[352374955,1739067045151,-500.0,0.00010129,2]
[352374956,1739067045160,-500.0,0.00010129,2]
[352374957,1739067045170,-505.05649173,0.00010129,2]
[352374958,1739067045179,-500.0,0.00010129,2]
[352374959,1739067045188,-296.9709335,0.00010129,2]
[352374960,1739067045198,-500.0,0.00010129,2]
[352374961,1739067045207,-500.0,0.00010129,2]
[352374962,1739067045218,-500.0,0.00010129,2]
[352374963,1739067045227,-500.0,0.00010129,2]
[352374964,1739067045236,-500.0,0.00010129,2]
[352374965,1739067045245,-500.0,0.00010129,2]
[352374966,1739067045256,-500.0,0.00010129,2]
[352374967,1739067045265,-500.0,0.00010129,2]
[352374968,1739067045274,-500.0,0.00010129,2]
[352374969,1739067045284,-500.0,0.00010129,2]
[352374970,1739067045293,-503.40649775,0.00010129,2]
[352374971,1739067045303,-500.0,0.00010129,2]
[352374972,1739067045312,-500.0,0.00010129,2]
[352374973,1739067045322,-500.0,0.00010129,2]
[352374974,1739067045331,-500.0,0.00010129,2]
[352374975,1739067045341,-500.0,0.00010129,2]
[352374976,1739067045351,-500.0,0.00010129,2]
[352374977,1739067045360,-511.37030246,0.00010129,2]
[352374978,1739067045369,-500.0,0.00010129,2]
[352374979,1739067045379,-500.0,0.00010129,2]
[352374980,1739067045388,-500.0,0.00010129,2]
[352374981,1739067045398,-500.0,0.00010129,2]
[352374982,1739067045407,-504.28746169,0.00010129,2]
[352374983,1739067045418,-500.0,0.00010129,2]
[352374984,1739067045429,-500.0,0.00010129,2]
[352374985,1739067045442,-500.0,0.00010129,2]
[352374986,1739067045451,-500.0,0.00010129,2]
[352374987,1739067045461,-504.70044535,0.00010129,2]
[352374988,1739067045471,-500.0,0.00010129,2]
[352374989,1739067045482,-500.0,0.00010129,2]
[352374990,1739067045493,-500.0,0.00010129,2]
[352374991,1739067045502,-500.0,0.00010129,2]
[352374992,1739067045513,-500.0,0.00010129,2]
[352374993,1739067045523,-500.0,0.00010129,2]
[352374994,1739067045532,-500.0,0.00010129,2]
[352374995,1739067045541,-500.0,0.00010129,2]
[352374996,1739067045550,-500.0,0.00010129,2]
[352374997,1739067045559,-500.0,0.00010129,2]
[352374998,1739067045568,-500.0,0.00010129,2]
[352374999,1739067045578,-500.0,0.00010129,2]
[352375000,1739067045587,-500.0,0.00010129,2]
[352375001,1739067045596,-500.0,0.00010129,2]
[352375002,1739067045606,-500.0,0.00010129,2]
[352375003,1739067045615,-500.0,0.00010129,2]
[352375004,1739067045624,-554.34,0.00010129,2]
[352375005,1739067045633,-500.0,0.00010129,2]
[352375006,1739067045642,-500.0,0.00010129,2]
[352375007,1739067045651,-500.0,0.00010129,2]
[352375008,1739067045661,-500.0,0.00010129,2]
[352375009,1739067045671,-500.0,0.00010129,2]
[352375010,1739067045680,-500.0,0.00010129,2]
[352375011,1739067045689,-500.0,0.00010129,2]
[352375012,1739067045698,-535.45410386,0.00010129,2]
[352375013,1739067045707,-500.0,0.00010129,2]
[352375014,1739067045716,-500.0,0.00010129,2]
[352375015,1739067045725,-500.0,0.00010129,2]
[352375016,1739067045735,-511.43374731,0.00010129,2]
[352375017,1739067045745,-507.88499083,0.00010129,2]
[352375018,1739067045754,-500.0,0.00010129,2]
[352375019,1739067045763,-500.0,0.00010129,2]
[352375020,1739067045772,-500.0,0.00010129,2]
[352375021,1739067045781,-500.0,0.00010129,2]
[352375022,1739067045790,-500.0,0.00010129,2]
[352375023,1739067045799,-263.42389043,0.00010129,2]
[352375024,1739067045808,-500.0,0.00010129,2]
[352375025,1739067045818,-500.0,0.00010129,2]
[352375026,1739067045827,-500.0,0.00010129,2]
[352375027,1739067045837,-500.0,0.00010129,2]
[352375028,1739067045846,-501.95138201,0.00010129,2]
[352375029,1739067045856,-500.0,0.00010129,2]
[352375030,1739067045865,-502.29521538,0.00010129,2]
[352375031,1739067045875,-500.0,0.00010129,2]
[352375032,1739067045886,-500.0,0.00010129,2]
[352375033,1739067045895,-500.0,0.00010129,2]
[352375034,1739067045904,-500.0,0.00010129,2]
[352375035,1739067045914,-500.0,0.00010131,2]
[352375036,1739067045925,-500.0,0.00010131,2]
[352375037,1739067045936,-361.02,0.00010137,2]
[352375038,1739067045945,-204.12,0.00010137,2]
[352375039,1739067045955,-372.85,0.00010173,2]
[352375040,1739067045964,-985.27,0.00010177,2]
[352375041,1739067045973,-985.27,0.00010177,2]
[352375042,1739067045983,-985.27,0.00010177,2]
[352375043,1739067045992,-21876.0,0.00010192,2]
[352375044,1739067046002,-500.0,0.00010264,2]
[352375045,1739067046011,-1794.9,0.00010264,2]
[352375046,1739067046020,-4050.41,0.00010264,2]
[352375047,1739067046030,-954.55,0.00010264,2]
[352375048,1739067046039,-813.29,0.00010264,2]
[352375049,1739067046048,-723.92,0.00010264,2]
[352375050,1739067046058,-2045.06,0.00010264,2]
[352375051,1739067046067,-500.0,0.00010264,2]
[352375052,1739067046077,-610.55,0.00010264,2]
[352375053,1739067046086,-695.36,0.00010264,2]
[352375054,1739067046095,-843.82,0.00010264,2]
[352375055,1739067046105,-925.11,0.00010264,2]
[352375056,1739067046114,-1054.0,0.00010264,2]
[352375057,1739067046124,-500.0,0.00010264,2]
[352375058,1739067046134,-518.49,0.00010264,2]
[352375059,1739067046143,-1000.0,0.00010264,2]
[352375060,1739067046152,-754.2,0.00010264,2]
[352375061,1739067046162,-500.0,0.00010264,2]
[352375062,1739067046171,-1273.96,0.00010264,2]
[352375063,1739067046180,-1423.17,0.00010264,2]
[352375064,1739067046189,-626.18,0.00010264,2]
[352375065,1739067046198,-1592.84,0.00010264,2]
[352375066,1739067046208,-1078.48,0.00010264,2]
[352375067,1739067046217,-524.32,0.00010264,2]
[352375068,1739067046227,-500.0,0.00010264,2]
[352375069,1739067046237,-640.21011767,0.00010264,2]
[352375070,1739067046246,-681.95,0.00010264,2]
[352375071,1739067046255,-500.0,0.00010264,2]
[352375072,1739067046265,-500.0,0.00010264,2]
[352375073,1739067046275,-1392.0,0.00010264,2]
[352375074,1739067046285,-1097.98,0.00010264,2]
[352375075,1739067046295,-389.48798112,0.00010264,2]
[352375076,1739067046309,-2361.14201888,0.00010264,2]
[352375077,1739067046319,-1008.66,0.00010264,2]
[352375078,1739067046522,-1427.9,0.00010264,2]
[352375079,1739067046533,-1251.38,0.00010264,2]
[352375080,1739067046543,-500.0,0.00010264,2]
[352375081,1739067046553,-780.67,0.00010264,2]
[352375082,1739067046563,-1087.8,0.00010264,2]
[352375083,1739067046573,-527.81860314,0.00010264,2]
[352375084,1739067046582,-1053.73,0.00010264,2]
[352375085,1739067046592,-500.0,0.00010264,2]
[352375086,1739067046601,-1227.47,0.00010264,2]
[352375087,1739067046611,-500.0,0.00010264,2]
[352375088,1739067046621,-1354.33,0.00010264,2]
[352375089,1739067046631,-601.0,0.00010264,2]
[352375090,1739067046641,-933.69,0.00010264,2]
[352375091,1739067046651,-184.40937798,0.00010264,2]
[352375092,1739067046923,-1473.95062202,0.00010264,2]
[352375093,1739067046934,-500.0,0.00010264,2]